fUSD/lending_fUSD_20251002
["ID","MTS","AMOUNT","RATE_DAILY","PERIOD"]
[388825219,1759395044494,-151.0,0.00021917,2]
[388825221,1759395044503,-500.0,0.00021917,2]
[388825223,1759395044513,-500.0,0.00021917,2]
[388825225,1759395044522,-582.23547904,0.00021917,2]
[388825227,1759395044531,-151.0,0.00021917,2]
[388825229,1759395044540,-500.0,0.00021917,2]
[388825231,1759395044550,-419.88539572,0.00021917,2]
[388825234,1759395044562,-80.11460428,0.00021917,2]
[388825236,1759395044572,-151.0,0.00021917,2]
[388825238,1759395044581,-151.0,0.00021917,2]
[388825240,1759395044590,-500.0,0.00021917,2]
[388825242,1759395044601,-151.0,0.00021917,2]
[388825244,1759395044610,-151.0,0.00021917,2]
[388825246,1759395044620,-595.79,0.00021917,2]
[388825248,1759395044629,-500.0,0.00021917,2]
[388825250,1759395044639,-500.0,0.00021917,2]
[388825252,1759395044649,-500.0,0.00021917,2]
[388825254,1759395044659,-500.0,0.00021917,2]
[388825256,1759395044669,-500.0,0.00021917,2]
[388825258,1759395044678,-500.0,0.00021917,2]
[388825261,1759395044691,-151.276952,0.00021917,2]
[388825263,1759395044700,-414.68933072,0.00021917,2]
[388825274,1759395044796,-85.31066928,0.00021917,2]
[388825276,1759395044806,-391.50116533,0.00021917,2]
[388825278,1759395044815,-177.78816539,0.00021917,2]
[388825280,1759395044827,-322.21183461,0.00021917,2]
[388825282,1759395044837,-503.7862079,0.00021917,2]
[388825284,1759395044846,-500.0,0.00021917,2]
[388825286,1759395044855,-500.0,0.00021917,2]
[388825288,1759395044864,-500.0,0.00021917,2]
[388825290,1759395044874,-500.0,0.00021917,2]
[388825292,1759395044883,-786.32,0.00021917,2]
[388825294,1759395044892,-500.0,0.00021917,2]
[388825296,1759395044902,-500.0,0.00021917,2]
[388825298,1759395044911,-153.570381,0.00021917,2]
[388825300,1759395044921,-500.0,0.00021917,2]
[388825302,1759395044930,-500.0,0.00021917,2]
[388825304,1759395044939,-500.0,0.00021917,2]
[388825306,1759395044948,-574.56,0.00021917,2]
[388825308,1759395044958,-500.0,0.00021917,2]
[388825310,1759395044971,-500.0,0.00021917,2]
[388825312,1759395044980,-500.0,0.00021917,2]
[388825314,1759395044989,-500.0,0.00021917,2]
[388825316,1759395044998,-500.0,0.00021917,2]
[388825318,1759395045010,-500.0,0.00021917,2]
[388825321,1759395045019,-500.0,0.00021917,2]
[388825323,1759395045029,-500.0,0.00021917,2]
[388825325,1759395045042,-500.0,0.00021917,2]
[388825327,1759395045051,-500.0,0.00021917,2]
[388825329,1759395045060,-27.55030459,0.00021917,2]
[388825333,1759395045087,-472.44969541,0.00021917,2]
[388825335,1759395045096,-500.0,0.00021917,2]
[388825378,1759395045411,-500.0,0.00021917,2]
[388825383,1759395045510,-500.0,0.00021917,2]
[388825385,1759395045519,-500.0,0.00021917,2]
[388825387,1759395045528,-1444.37,0.00021917,2]
[388825389,1759395045538,-632.19,0.00021917,2]
[388825391,1759395045547,-271.02312296,0.00021917,2]
[388825393,1759395045556,-500.0,0.00021917,2]
[388825395,1759395045565,-500.41285806,0.00021917,2]
[388825397,1759395045575,-501.04211608,0.00021917,2]
[388825399,1759395045584,-500.0,0.00021917,2]
[388825401,1759395045593,-738.57,0.00021917,2]
[388825404,1759395045603,-500.0,0.00021917,2]
[388825407,1759395045613,-500.0,0.00021917,2]
[388825409,1759395045623,-500.0,0.00021917,2]
[388825411,1759395045632,-501.934166,0.00021917,2]
[388825413,1759395045641,-500.0,0.00021917,2]
[388825416,1759395045651,-1911.05,0.00021917,2]
[388825417,1759395045660,-500.0,0.00021917,2]
[388825420,1759395045670,-733.2,0.00021917,2]
[388825422,1759395045679,-500.0,0.00021917,2]
[388825424,1759395045688,-500.512207,0.00021917,2]
[388825426,1759395045697,-500.0,0.00021917,2]
[388825428,1759395045707,-500.0,0.00021917,2]
[388825429,1759395045716,-500.0,0.00021917,2]
[388825431,1759395045726,-500.0,0.00021917,2]
[388825433,1759395045735,-152.455424,0.00021917,2]
[388825435,1759395045744,-500.0,0.00021917,2]
[388825437,1759395045754,-507.57309816,0.00021917,2]
[388825439,1759395045764,-500.0,0.00021917,2]
[388825441,1759395045773,-1152.39,0.00021917,2]
[388825443,1759395045783,-500.0,0.00021917,2]
[388825445,1759395045792,-596.97,0.00021917,2]
[388825447,1759395045801,-500.0,0.00021917,2]
[388825449,1759395045809,-500.25735924,0.00021917,2]
[388825451,1759395045819,-500.0,0.00021917,2]
[388825453,1759395045828,-500.91292925,0.00021917,2]
[388825455,1759395045837,-500.0,0.00021917,2]
[388825457,1759395045846,-512.1,0.00021917,2]
[388825459,1759395045855,-500.0,0.00021917,2]
[388825461,1759395045864,-857.58,0.00021917,2]
[388825463,1759395045873,-500.0,0.00021917,2]
[388825465,1759395045882,-776.36,0.00021917,2]
[388825467,1759395045892,-584.81,0.00021917,2]
[388825469,1759395045901,-500.0,0.00021917,2]
[388825471,1759395045911,-1001.89,0.00021917,2]
[388825473,1759395045920,-500.0,0.00021917,2]
[388825476,1759395045930,-500.0,0.00021917,2]
[388825478,1759395045939,-642.41,0.00021917,2]
[388825480,1759395045949,-1826.05,0.00021917,2]
[388825482,1759395045958,-551.75,0.00021917,2]
[388825484,1759395045973,-500.0,0.00021917,2]
[388825486,1759395045982,-2147.51,0.00021917,2]
[388825488,1759395045992,-500.0,0.00021917,2]
[388825490,1759395046003,-500.0,0.00021917,2]
[388825492,1759395046013,-500.0,0.00021917,2]
[388825494,1759395046022,-500.0,0.00021917,2]
[388825496,1759395046031,-500.0,0.00021917,2]
[388825498,1759395046042,-675.86,0.00021917,2]
[388825500,1759395046051,-500.0,0.00021917,2]
[388825502,1759395046061,-1285.73,0.00021917,2]
[388825504,1759395046071,-500.0,0.00021917,2]
[388825506,1759395046080,-727.24,0.00021917,2]
[388825508,1759395046090,-500.0,0.00021917,2]
[388825509,1759395046099,-500.0,0.00021917,2]
[388825511,1759395046109,-500.0,0.00021917,2]
[388825513,1759395046119,-500.0,0.00021917,2]
[388825515,1759395046128,-1153.01,0.00021917,2]
[388825517,1759395046138,-500.0,0.00021917,2]
[388825519,1759395046148,-500.0,0.00021917,2]
[388825521,1759395046157,-151.0,0.00021917,2]
[388825523,1759395046167,-267.06,0.00021917,2]
[388825525,1759395046176,-151.0,0.00021917,2]
[388825527,1759395046186,-500.0,0.00021917,2]
[388825529,1759395046195,-500.0,0.00021917,2]
[388825530,1759395046204,-500.0,0.00021917,2]
[388825532,1759395046213,-832.73,0.00021917,2]
[388825534,1759395046222,-500.0,0.00021917,2]
[388825536,1759395046232,-764.83,0.00021917,2]
[388825538,1759395046241,-500.0,0.00021917,2]
[388825540,1759395046251,-500.0,0.00021917,2]
[388825542,1759395046261,-1794.42,0.00021917,2]
[388825544,1759395046270,-500.0,0.00021917,2]
[388825546,1759395046279,-761.47,0.00021917,2]
[388825548,1759395046289,-1658.82,0.00021917,2]
[388825550,1759395046298,-500.0,0.00021917,2]
[388825552,1759395046310,-503.42976769,0.00021917,2]
[388825554,1759395046321,-1229.21,0.00021917,2]
[388825556,1759395046330,-537.24,0.00021917,2]
[388825558,1759395046340,-500.0,0.00021917,2]
[388825560,1759395046350,-1876.81,0.00021917,2]
[388825562,1759395046360,-500.0,0.00021917,2]
[388825565,1759395046370,-2815.35,0.00021917,2]
[388825566,1759395046380,-500.0,0.00021917,2]
[388825568,1759395046389,-500.0,0.00021917,2]
[388825570,1759395046399,-500.0,0.00021917,2]
[388825572,1759395046408,-530.16,0.00021917,2]
[388825574,1759395046418,-500.0,0.00021917,2]
[388825576,1759395046427,-527.66,0.00021917,2]
[388825578,1759395046437,-731.06,0.00021917,2]
[388825580,1759395046446,-1271.45,0.00021917,2]
[388825582,1759395046456,-500.0,0.00021917,2]
[388825584,1759395046465,-546.49,0.00021917,2]
[388825586,1759395046474,-500.0,0.00021917,2]
[388825588,1759395046484,-655.32,0.00021917,2]
[388825590,1759395046493,-2091.53,0.00021917,2]
[388825592,1759395046503,-921.28,0.00021917,2]
[388825594,1759395046512,-3954.6,0.00021917,2]
[388825596,1759395046521,-668.22,0.00021917,2]
[388825598,1759395046529,-2722.38,0.00021917,2]
[388825600,1759395046539,-2932.79,0.00021917,2]
[388825602,1759395046548,-500.0,0.00021917,2]
[388825604,1759395046557,-500.0,0.00021917,2]
[388825606,1759395046567,-500.0,0.00021917,2]
[388825608,1759395046576,-1663.46,0.00021917,2]
[388825610,1759395046585,-1011.86,0.00021917,2]
[388825612,1759395046595,-2221.28,0.00021917,2]
[388825614,1759395046606,-1229.61,0.00021917,2]
[388825616,1759395046615,-980.74,0.00021917,2]
[388825618,1759395046625,-1148.17,0.00021917,2]
[388825620,1759395046634,-500.0,0.00021917,2]
[388825622,1759395046644,-500.7892902,0.00021917,2]
[388825624,1759395046654,-500.0,0.00021917,2]
[388825626,1759395046663,-500.0,0.00021917,2]
[388825628,1759395046673,-1434.79,0.00021917,2]
[388825630,1759395046682,-500.0,0.00021917,2]
[388825632,1759395046691,-500.0,0.00021917,2]
[388825634,1759395046701,-599.34641039,0.00021917,2]
[388825636,1759395046711,-1584.22,0.00021917,2]
[388825638,1759395046720,-500.0,0.00021917,2]
[388825640,1759395046729,-1114.37,0.00021917,2]
[388825642,1759395046739,-500.0,0.00021917,2]
[388825644,1759395046748,-2566.45,0.00021917,2]
[388825646,1759395046758,-4963.94,0.00021917,2]
[388825648,1759395046768,-1077.88,0.00021917,2]
[388825650,1759395046777,-780.7,0.00021917,2]
[388825652,1759395046786,-500.0,0.00021917,2]
[388825654,1759395046795,-2280.41,0.00021917,2]
[388825656,1759395046805,-1590.83,0.00021917,2]
[388825659,1759395046815,-519.08,0.00021917,2]
[388825660,1759395046824,-500.0,0.00021917,2]
[388825662,1759395046834,-1049.57,0.00021917,2]
[388825664,1759395046843,-1793.23,0.00021917,2]
[388825666,1759395046852,-500.0,0.00021917,2]
[388825668,1759395046861,-500.0,0.00021917,2]
[388825670,1759395046870,-505.64254703,0.00021917,2]
[388825672,1759395046880,-501.03599612,0.00021917,2]
[388825674,1759395046889,-715.14,0.00021917,2]
[388825676,1759395046899,-1804.09,0.00021917,2]
[388825678,1759395046909,-501.29573141,0.00021917,2]
[388825680,1759395046918,-500.0,0.00021917,2]
[388825682,1759395046927,-714.49,0.00021917,2]
[388825684,1759395046936,-1684.53,0.00021917,2]
[388825686,1759395046946,-500.75032627,0.00021917,2]
[388825688,1759395046955,-584.97,0.00021917,2]
[388825690,1759395046967,-1953.26,0.00021917,2]
[388825692,1759395046976,-501.90026276,0.00021917,2]
[388825694,1759395046985,-500.0,0.00021917,2]
[388825696,1759395046994,-501.28338549,0.00021917,2]
[388825698,1759395047006,-500.0,0.00021917,2]
[388825700,1759395047016,-2410.65,0.00021917,2]
[388825702,1759395047025,-500.0,0.00021917,2]
[388825704,1759395047035,-597.98,0.00021917,2]
[388825706,1759395047044,-500.0,0.00021917,2]
[388825708,1759395047053,-1544.54,0.00021917,2]
[388825710,1759395047063,-1983.77,0.00021917,2]
[388825711,1759395047072,-500.0,0.00021917,2]
[388825713,1759395047082,-877.49,0.00021917,2]
[388825715,1759395047092,-500.1,0.00021917,2]
[388825717,1759395047101,-503.22772185,0.00021917,2]
[388825719,1759395047110,-500.0,0.00021917,2]
[388825721,1759395047123,-610.91,0.00021917,2]
[388825723,1759395047133,-490.75074541,0.00021917,2]
[388825725,1759395047143,-422.11461739,0.00021917,2]
[388825727,1759395047154,-500.0,0.00021917,2]
[388825729,1759395047163,-2349.96,0.00021917,2]
[388825731,1759395047173,-500.0,0.00021917,2]
[388825733,1759395047183,-500.0,0.00021917,2]
[388825735,1759395047196,-501.34305245,0.00021917,2]
[388825737,1759395047206,-1001.49,0.00021917,2]
[388825739,1759395047215,-500.0,0.00021917,2]
[388825741,1759395047226,-839.82,0.00021917,2]
[388825743,1759395047241,-500.0,0.00021917,2]
[388825745,1759395047251,-500.90784099,0.00021917,2]
[388825747,1759395047261,-1569.65,0.00021917,2]
[388825749,1759395047271,-2102.18,0.00021917,2]
[388825751,1759395047280,-500.0,0.00021917,2]
[388825753,1759395047289,-500.0,0.00021917,2]
[388825755,1759395047298,-501.21919564,0.00021917,2]
[388825757,1759395047308,-501.76365755,0.00021917,2]
[388825759,1759395047316,-500.0,0.00021917,2]
[388825761,1759395047326,-554.28,0.00021917,2]
[388825763,1759395047338,-2521.64,0.00021917,2]
[388825765,1759395047347,-631.81,0.00021917,2]
[388825767,1759395047356,-500.0,0.00021917,2]
[388825769,1759395047366,-500.0,0.00021917,2]
[388825771,1759395047375,-564.1,0.00021917,2]
[388825773,1759395047384,-500.0,0.00021917,2]
[388825775,1759395047393,-536.74,0.00021917,2]
[388825777,1759395047402,-500.0,0.00021917,2]
[388825779,1759395047411,-2410.91,0.00021917,2]
[388825781,1759395047420,-500.0,0.00021917,2]
[388825783,1759395047429,-502.19891926,0.00021917,2]
[388825785,1759395047439,-1655.67,0.00021917,2]
[388825787,1759395047448,-550.54,0.00021917,2]
[388825789,1759395047458,-503.18484201,0.00021917,2]
[388825791,1759395047466,-1460.04,0.00021917,2]
[388825793,1759395047475,-500.0,0.00021917,2]
[388825795,1759395047484,-500.0,0.00021917,2]
[388825797,1759395047493,-500.0,0.00021917,2]
[388825799,1759395047502,-1891.14,0.00021917,2]
[388825801,1759395047512,-616.57092766,0.00021917,2]
[388825803,1759395047521,-500.77311695,0.00021917,2]
[388825805,1759395047532,-1112.28,0.00021917,2]
[388825807,1759395047542,-500.0,0.00021917,2]
[388825810,1759395047553,-500.0,0.00021917,2]
[388825812,1759395047562,-1242.39,0.00021917,2]
[388825814,1759395047572,-500.0,0.00021917,2]
[388825816,1759395047582,-770.55,0.00021917,2]
[388825818,1759395047591,-500.0,0.00021917,2]
[388825820,1759395047601,-1422.43,0.00021917,2]
[388825822,1759395047610,-1467.06,0.00021917,2]
[388825824,1759395047619,-1113.08,0.00021917,2]
[388825826,1759395047628,-507.79,0.00021917,2]
[388825828,1759395047638,-500.0,0.00021917,2]
[388825830,1759395047647,-2342.68,0.00021917,2]
[388825832,1759395047657,-2258.98,0.00021917,2]
[388825834,1759395047666,-1734.51,0.00021917,2]
[388825836,1759395047676,-500.0,0.00021917,2]
[388825838,1759395047685,-318.47591377,0.00021917,2]
[388825840,1759395047695,-627.32,0.00021917,2]
[388825842,1759395047704,-2123.82,0.00021917,2]
[388825844,1759395047713,-500.0,0.00021917,2]
[388825846,1759395047722,-500.0,0.00021917,2]
[388825848,1759395047732,-1669.29,0.00021917,2]
[388825850,1759395047742,-556.16077613,0.00021917,2]
[388825852,1759395047751,-1649.88,0.00021917,2]
[388825854,1759395047761,-2540.24,0.00021917,2]
[388825855,1759395047770,-501.60625619,0.00021917,2]
[388825856,1759395047779,-500.0,0.00021917,2]
[388825858,1759395047789,-500.0,0.00021917,2]
[388825860,1759395047798,-1730.59,0.00021917,2]
[388825862,1759395047807,-500.0,0.00021917,2]
[388825864,1759395047817,-501.24608778,0.00021917,2]
[388825866,1759395047827,-615.11963545,0.00021917,2]
[388825869,1759395048382,-2375.8234327,0.00021917,2]
[388825870,1759395048398,-593.94335,0.00021917,2]
[388825871,1759395048498,-267.59358185,0.00021917,2]
[388825872,1759395048507,-500.0,0.00021917,2]
[388825873,1759395048516,-674.64806727,0.00021917,2]
[388825874,1759395048527,-395.92193273,0.00021917,2]
[388825875,1759395048537,-500.0,0.00021917,2]
[388825876,1759395048546,-500.0,0.00021917,2]
[388825877,1759395048555,-2024.88,0.00021917,2]
[388825878,1759395048565,-500.0,0.00021917,2]
[388825879,1759395048575,-500.0,0.00021917,2]
[388825880,1759395048585,-500.0,0.00021917,2]
[388825881,1759395048594,-500.0,0.00021917,2]
[388825882,1759395048604,-500.0,0.00021917,2]
[388825883,1759395048614,-1671.07,0.00021917,2]
[388825884,1759395048624,-500.0,0.00021917,2]
[388825885,1759395048633,-500.0,0.00021917,2]
[388825886,1759395048643,-57.58933388,0.00021917,2]
[388825887,1759395048654,-442.41066612,0.00021917,2]
[388825888,1759395048663,-666.98,0.00021917,2]
[388825889,1759395048672,-2011.13,0.00021917,2]
[388825890,1759395048681,-879.47933388,0.00021917,2]
[388825891,1759395048697,-646.07066612,0.00021917,2]
[388825892,1759395048705,-28.7698967,0.00021917,2]
[388825919,1759395552313,1718.52,0.000165,2]
[388825920,1759395564042,1718.52,0.000167,2]
[388825921,1759395582922,1718.54264474,0.000167,2]
[388825922,1759395592017,1718.52,0.000167,2]
[388825923,1759395608576,1718.52,0.000167,2]
[388825925,1759395632451,1718.52,0.000167,2]
[388825926,1759395652611,1718.52,0.000167,2]
[388825927,1759395662391,1718.52,0.000167,2]
[388825928,1759395676847,1251.81735526,0.000167,2]
[388825929,1759395676868,466.70264474,0.000167,2]
[388825930,1759395687444,1718.52,0.000167,2]
[388825935,1759395927926,12814.77735526,0.00016,2]
[388825936,1759395927995,1595.81587174,0.00016,2]
[388825947,1759396232022,-224.75365482,0.00016983,2]
[388825948,1759396232033,-474.61,0.000178,7]
[388825949,1759396232042,-370.49393606,0.00019887,2]
[388825950,1759396232052,-200.0,0.000199,2]
[388825951,1759396232061,-704.25271991,0.0002,2]
[388825952,1759396232070,-704.25271991,0.000202,2]
[388825953,1759396232080,-704.25271991,0.000204,2]
[388825954,1759396232089,-704.25271991,0.000206,2]
[388825955,1759396232099,-474.51,0.0002064,2]
[388825956,1759396232108,-168.0,0.00020752,2]
[388825957,1759396232117,-704.25271991,0.000208,2]
[388825958,1759396232127,-1734.80586719,0.0002082,2]
[388825959,1759396232136,-168.0,0.00020873,2]
[388825960,1759396232146,-237.84,0.00020912,2]
[388825961,1759396232155,-300.0,0.00020999,2]
[388825962,1759396232165,-6000.0,0.00021,11]
[388825963,1759396232174,-150.0,0.00021,2]
[388825964,1759396232183,-205.65189931,0.00021032,2]
[388825965,1759396232192,-168.0,0.00021054,2]
[388825966,1759396232201,-150.0,0.000215,2]
[388825967,1759396232210,-200.0,0.000215,7]
[388825968,1759396232220,-979.51635553,0.00021527,2]
[388825969,1759396232324,-160.06548655,0.00021528,2]
[388825970,1759396232334,-564.89504792,0.00021529,2]
[388825971,1759396232348,-197.47040978,0.00021539,2]
[388825972,1759396232357,-197.47040978,0.00021541,2]
[388825973,1759396232367,-645.83252155,0.00021545,2]
[388825974,1759396232377,-979.51635553,0.00021548,2]
[388825975,1759396232387,-481.49421266,0.0002155,2]
[388825976,1759396232396,-979.51635553,0.00021557,2]
[388825977,1759396232406,-766.16878128,0.00021562,2]
[388825978,1759396232415,-230.86417056,0.00021562,2]
[388825979,1759396232425,-2873.40366571,0.00021564,2]
[388825980,1759396232435,-2873.40366571,0.00021569,2]
[388825981,1759396232446,-963.53993363,0.00021571,2]
[388825982,1759396232456,-527.77,0.00021572,2]
[388825983,1759396232465,-645.83252155,0.00021575,2]
[388825984,1759396232475,-2217.23775264,0.00021576,2]
[388825985,1759396232486,-564.89504792,0.00021579,2]
[388825986,1759396232495,-230.86417056,0.00021579,2]
[388825987,1759396232505,-230.86417056,0.0002158,2]
[388825988,1759396232515,-978.88014503,0.00021582,2]
[388825989,1759396232525,-963.53993363,0.00021582,2]
[388825990,1759396232536,-318.49871593,0.00021583,2]
[388825991,1759396232545,-302.3793959,0.00021587,2]
[388825992,1759396232555,-457.31534327,0.00021594,2]
[388825993,1759396232564,-197.47040978,0.00021596,2]
[388825994,1759396232574,-160.06548655,0.000216,2]
[388825995,1759396232583,-500.0,0.000216,7]
[388825996,1759396232594,-2000.0,0.000216,2]
[388825997,1759396232604,-766.16878128,0.00021603,2]
[388825998,1759396232613,-168.0,0.00021607,2]
[388825999,1759396232623,-978.88014503,0.00021608,2]
[388826000,1759396232633,-457.31534327,0.00021612,2]
[388826001,1759396232642,-2217.23775264,0.00021616,2]
[388826002,1759396232652,-318.49871593,0.00021617,2]
[388826003,1759396232662,-965.21718457,0.00021622,2]
[388826004,1759396232671,-160.06548655,0.00021625,2]
[388826005,1759396232681,-318.49871593,0.00021628,2]
[388826006,1759396232690,-963.53993363,0.00021632,2]
[388826007,1759396232699,-2873.40366571,0.00021635,2]
[388826008,1759396232709,-645.83252155,0.00021636,2]
[388826009,1759396232719,-481.49421266,0.00021637,2]
[388826010,1759396232728,-160.06548655,0.00021638,2]
[388826011,1759396232737,-160.06548655,0.00021638,2]
[388826012,1759396232747,-481.49421266,0.00021641,2]
[388826013,1759396232756,-564.89504792,0.00021642,2]
[388826014,1759396232766,-457.31534327,0.00021646,2]
[388826015,1759396232775,-963.53993363,0.00021648,2]
[388826016,1759396232785,-2217.23775264,0.00021649,2]
[388826017,1759396232794,-645.83252155,0.00021649,2]
[388826018,1759396232803,-481.49421266,0.00021651,2]
[388826019,1759396232813,-766.16878128,0.00021651,2]
[388826020,1759396232826,-978.88014503,0.00021652,2]
[388826021,1759396232836,-978.88014503,0.00021652,2]
[388826022,1759396232846,-318.49871593,0.00021652,2]
[388826023,1759396232856,-1578.212,0.00021652,2]
[388826024,1759396232866,-965.21718457,0.00021653,2]
[388826025,1759396232875,-481.49421266,0.00021654,2]
[388826026,1759396232885,-963.53993363,0.00021654,2]
[388826027,1759396232894,-197.47040978,0.00021657,2]
[388826028,1759396232904,-2873.40366571,0.00021659,2]
[388826029,1759396232913,-2217.23775264,0.00021662,2]
[388826030,1759396232922,-978.88014503,0.00021663,2]
[388826031,1759396232932,-766.16878128,0.00021665,2]
[388826032,1759396232942,-457.31534327,0.00021666,2]
[388826033,1759396232952,-230.86417056,0.00021666,2]
[388826034,1759396232962,-318.49871593,0.00021669,2]
[388826035,1759396232973,-965.21718457,0.00021669,2]
[388826036,1759396232983,-564.89504792,0.0002167,2]
[388826037,1759396232993,-2873.40366571,0.00021677,2]
[388826038,1759396233003,-2217.23775264,0.00021678,2]
[388826039,1759396233013,-197.47040978,0.00021679,2]
[388826040,1759396233025,-965.21718457,0.0002168,2]
[388826041,1759396233035,-965.21718457,0.00021685,2]
[388826042,1759396233045,-645.83252155,0.00021687,2]
[388826043,1759396233055,-564.89504792,0.00021688,2]
[388826044,1759396233064,-979.51635553,0.00021689,2]
[388826045,1759396233074,-979.51635553,0.0002169,2]
[388826046,1759396233084,-230.86417056,0.00021691,2]
[388826047,1759396233093,-457.31534327,0.00021691,2]
[388826048,1759396233103,-766.16878128,0.00021699,2]
[388826049,1759396233113,-800.0,0.000217,7]
[388826050,1759396233123,-168.0,0.00021762,2]
[388826051,1759396233133,-1000.0,0.000218,7]
[388826052,1759396233143,-285.5,0.00021817,2]
[388826053,1759396233153,-5000.0,0.00021817,2]
[388826054,1759396233163,-500.0,0.00021817,2]
[388826055,1759396233173,-500.0,0.00021817,2]
[388826056,1759396233182,-500.0,0.00021817,2]
[388826057,1759396233192,-500.0,0.00021817,2]
[388826058,1759396233201,-500.0,0.00021817,2]
[388826059,1759396233210,-500.0,0.00021817,2]
[388826060,1759396233220,-500.0,0.00021817,2]
[388826061,1759396233229,-500.0,0.00021817,2]
[388826062,1759396233239,-500.0,0.00021817,2]
[388826063,1759396233248,-500.0,0.00021817,2]
[388826064,1759396233258,-500.0,0.00021817,2]
[388826065,1759396233270,-500.0,0.00021817,2]
[388826066,1759396233280,-500.0,0.00021817,2]
[388826067,1759396233290,-500.0,0.00021817,2]
[388826068,1759396233300,-500.0,0.00021817,2]
[388826069,1759396233309,-500.0,0.00021817,2]
[388826070,1759396233319,-500.0,0.00021817,2]
[388826071,1759396233328,-500.0,0.00021817,2]
[388826072,1759396233338,-500.0,0.00021817,2]
[388826073,1759396233347,-500.0,0.00021817,2]
[388826074,1759396233357,-500.0,0.00021817,2]
[388826075,1759396233366,-500.0,0.00021817,2]
[388826076,1759396233376,-500.0,0.00021817,2]
[388826077,1759396233385,-500.0,0.00021817,2]
[388826078,1759396233394,-500.0,0.00021817,2]
[388826079,1759396233403,-753.96464248,0.00021817,2]
[388826080,1759396233417,-989.78245516,0.00021817,2]
[388826081,1759396233426,-167.63796114,0.00021817,2]
[388826082,1759396233435,-252.58865247,0.00021817,2]
[388826083,1759396233444,-157.44686453,0.00021817,2]
[388826084,1759396233454,-155.72329349,0.00021817,2]
[388826085,1759396233463,-178.04,0.00021817,2]
[388826086,1759396233473,-2000.0,0.00021835,2]
[388826087,1759396233482,-183.50183387,0.00021846,2]
[388826088,1759396233491,-400.0,0.0002187,2]
[388826089,1759396233500,-400.0,0.0002187,2]
[388826090,1759396233509,-500.0,0.0002187,2]
[388826091,1759396233519,-700.0,0.0002187,2]
[388826092,1759396233528,-700.0,0.0002187,2]
[388826093,1759396233538,-700.0,0.0002187,2]
[388826094,1759396233547,-1743.74709756,0.00021878,2]
[388826095,1759396233556,-252.58865241,0.00021878,2]
[388826096,1759396233565,-1300.0,0.000219,7]
[388826097,1759396233575,-202.54,0.000219,2]
[388826098,1759396233584,-200.0,0.000219,2]
[388826099,1759396233594,-236.63357501,0.00021907,2]
[388826100,1759396233603,-157.6656539,0.00021907,2]
[388826101,1759396233612,-150.0,0.00021907,2]
[388826102,1759396233622,-500.0,0.00021907,2]
[388826103,1759396233632,-451.0,0.00021907,2]
[388826104,1759396233641,-150.0,0.00021907,2]
[388826105,1759396233651,-150.0,0.00021907,2]
[388826106,1759396233660,-150.0,0.00021907,2]
[388826107,1759396233670,-200.0,0.00021907,2]
[388826108,1759396233679,-500.0,0.00021907,2]
[388826109,1759396233688,-450.63152212,0.00021916,2]
[388826110,1759396233708,-185.38932415,0.00021916,2]
[388826111,1759396233718,-469.09985546,0.00021916,2]
[388826112,1759396233730,-30.90014454,0.00021916,2]
[388826113,1759396233739,-225.30182527,0.00021916,2]